fUSD/lending_fUSD_20241111
["ID","MTS","AMOUNT","RATE_DAILY","PERIOD"]
[341988658,1731343872919,-500.0,0.00013698,2]
[341988660,1731343872928,-1233.66,0.00013698,2]
[341988662,1731343872938,-500.0,0.00013698,2]
[341988664,1731343872948,-1233.66,0.00013698,2]
[341988666,1731343872957,-500.0,0.00013698,2]
[341988668,1731343872967,-1233.66,0.00013698,2]
[341988670,1731343872977,-500.0,0.00013698,2]
[341988672,1731343872987,-1233.66,0.00013698,2]
[341988674,1731343872996,-500.0,0.00013698,2]
[341988676,1731343873005,-1233.66,0.00013698,2]
[341988678,1731343873014,-500.0,0.00013698,2]
[341988680,1731343873030,-1233.66,0.00013698,2]
[341988681,1731343873039,-500.0,0.00013698,2]
[341988682,1731343873048,-500.0,0.00013698,2]
[341988683,1731343873059,-1233.66,0.00013698,2]
[341988684,1731343873068,-500.0,0.00013698,2]
[341988685,1731343873078,-500.0,0.00013698,2]
[341988686,1731343873088,-500.0,0.00013698,2]
[341988687,1731343873099,-1233.66,0.00013698,2]
[341988688,1731343873110,-500.0,0.00013698,2]
[341988689,1731343873120,-500.0,0.00013698,2]
[341988690,1731343873129,-1233.66,0.00013698,2]
[341988691,1731343873138,-500.0,0.00013698,2]
[341988692,1731343873148,-500.0,0.00013698,2]
[341988693,1731343873157,-500.0,0.00013698,2]
[341988694,1731343873166,-500.0,0.00013698,2]
[341988695,1731343873175,-1233.66,0.00013698,2]
[341988696,1731343873184,-500.0,0.00013698,2]
[341988697,1731343873194,-500.0,0.00013698,2]
[341988698,1731343873203,-1233.66,0.00013698,2]
[341988699,1731343873212,-500.0,0.00013698,2]
[341988700,1731343873221,-500.0,0.00013698,2]
[341988701,1731343873230,-1233.66,0.00013698,2]
[341988702,1731343873240,-500.0,0.00013698,2]
[341988703,1731343873250,-500.0,0.00013698,2]
[341988704,1731343873260,-500.0,0.00013698,2]
[341988705,1731343873269,-1233.66,0.00013698,2]
[341988706,1731343873280,-500.0,0.00013698,2]
[341988707,1731343873289,-500.0,0.00013698,2]
[341988708,1731343873299,-500.0,0.00013698,2]
[341988709,1731343873308,-500.0,0.00013698,2]
[341988710,1731343873318,-500.0,0.00013698,2]
[341988711,1731343873327,-1233.66,0.00013698,2]
[341988712,1731343873337,-613.3762831,0.00013698,2]
[341988713,1731343873347,-500.0,0.00013698,2]
[341988714,1731343873356,-500.0,0.00013698,2]
[341988715,1731343873366,-500.0,0.00013698,2]
[341988716,1731343873375,-1233.74727868,0.00013698,2]
[341988717,1731343873385,-500.0,0.00013698,2]
[341988718,1731343873395,-500.0,0.00013698,2]
[341988719,1731343873405,-493.64113291,0.00013698,2]
[341988720,1731343873414,-500.0,0.00013698,2]
[341988721,1731343873423,-500.0,0.00013698,2]
[341988722,1731343873433,-620.98,0.00013698,2]
[341988723,1731343873442,-500.0,0.00013698,2]
[341988724,1731343873452,-620.98,0.00013698,2]
[341988725,1731343873461,-500.0,0.00013698,2]
[341988726,1731343873471,-620.98,0.00013698,2]
[341988727,1731343873480,-500.0,0.00013698,2]
[341988728,1731343873490,-620.98,0.00013698,2]
[341988729,1731343873500,-500.0,0.00013698,2]
[341988730,1731343873509,-620.98,0.00013698,2]
[341988731,1731343873519,-500.0,0.00013698,2]
[341988732,1731343873532,-620.98,0.00013698,2]
[341988733,1731343873542,-500.0,0.00013698,2]
[341988734,1731343873553,-620.98,0.00013698,2]
[341988735,1731343873562,-620.98,0.00013698,2]
[341988736,1731343873572,-707.74,0.00013698,2]
[341988737,1731343873582,-707.74,0.00013698,2]
[341988738,1731343873592,-707.74,0.00013698,2]
[341988739,1731343873601,-707.74,0.00013698,2]
[341988740,1731343873611,-707.74,0.00013698,2]
[341988741,1731343873620,-707.74,0.00013698,2]
[341988742,1731343873630,-707.74,0.00013698,2]
[341988743,1731343873639,-500.0,0.00013698,2]
[341988744,1731343873649,-707.74,0.00013698,2]
[341988745,1731343873658,-500.0,0.00013698,2]
[341988746,1731343873667,-325.0,0.00013699,2]
[341988747,1731343873677,-200.0,0.00013699,2]
[341988748,1731343873686,-150.0,0.00013699,2]
[341988749,1731343873696,-3647.42,0.00013699,2]
[341988750,1731343873706,-6006.91,0.00013699,2]
[341988751,1731343873716,-300.0,0.00013699,2]
[341988752,1731343873726,-875.666046,0.000137,2]
[341988753,1731343873735,-200.0,0.000137,2]
[341988754,1731343873745,-27390.0,0.00013741,2]
[341988755,1731343873754,-170.92207416,0.00013749,2]
[341988756,1731343873763,-342.4529306,0.0001378,2]
[341988757,1731343873773,-2915.0,0.00013823,2]
[341988758,1731343873785,-200.0,0.00013835,2]
[341988759,1731343873794,-1172.11,0.00013866,2]
[341988760,1731343873809,-500.0,0.00013866,2]
[341988761,1731343873828,-500.0,0.00013866,2]
[341988762,1731343873844,-500.0,0.00013866,2]
[341988763,1731343873863,-632.58,0.00013866,2]
[341988764,1731343873880,-500.0,0.00013866,2]
[341988765,1731343873895,-500.0,0.00013866,2]
[341988766,1731343873912,-733.18,0.00013866,2]
[341988767,1731343873929,-1074.69,0.00013866,2]
[341988768,1731343873947,-958.83,0.00013866,2]
[341988769,1731343873966,-518.35729195,0.00013866,2]
[341988770,1731343873982,-6620.89,0.00013866,2]
[341988771,1731343874000,-1090.45,0.00013866,2]
[341988772,1731343874017,-788.5,0.00013866,2]
[341988773,1731343874034,-641.61,0.00013866,2]
[341988774,1731343874052,-500.0,0.00013866,2]
[341988775,1731343874066,-500.0,0.00013866,2]
[341988776,1731343874081,-500.0,0.00013866,2]
[341988777,1731343874096,-551.28,0.00013866,2]
[341988778,1731343874112,-500.0,0.00013866,2]
[341988779,1731343874126,-500.0,0.00013866,2]
[341988780,1731343874139,-500.0,0.00013866,2]
[341988781,1731343874153,-500.0,0.00013866,2]
[341988782,1731343874167,-1518.7,0.00013866,2]
[341988783,1731343874180,-500.0,0.00013866,2]
[341988784,1731343874195,-921.57,0.00013866,2]
[341988785,1731343874209,-1288.23,0.00013866,2]
[341988786,1731343874223,-679.08,0.00013866,2]
[341988787,1731343874237,-520.90734084,0.00013866,2]
[341988788,1731343874251,-500.0,0.00013866,2]
[341988789,1731343874266,-500.0,0.00013872,2]
[341988790,1731343874281,-500.0,0.00013872,2]
[341988791,1731343874295,-842.8,0.00013872,2]
[341988792,1731343874309,-1203.74,0.00013872,2]
[341988793,1731343874324,-2280.07,0.00013872,2]
[341988794,1731343874339,-1108.15,0.00013872,2]
[341988795,1731343874353,-500.0,0.00013872,2]
[341988796,1731343874368,-557.03,0.00013872,2]
[341988797,1731343874382,-500.0,0.00013872,2]
[341988798,1731343874396,-226.83971483,0.00013873,2]
[341988799,1731343874411,-500.0,0.00013873,2]
[341988800,1731343874427,-502.75649979,0.00013873,2]
[341988801,1731343874441,-500.0,0.00013873,2]
[341988802,1731343874456,-299.2605458,0.00013873,2]
[341988803,1731343874470,-500.0,0.00013873,2]
[341988804,1731343874483,-500.0,0.00013873,2]
[341988805,1731343874497,-500.42115781,0.00013873,2]
[341988806,1731343874512,-500.0,0.00013873,2]
[341988807,1731343874526,-500.0,0.00013873,2]
[341988808,1731343874542,-500.0,0.00013873,2]
[341988809,1731343874557,-500.0,0.00013873,2]
[341988810,1731343874571,-279.04239122,0.00013873,2]
[341988811,1731343874585,-512.98101377,0.00013873,2]
[341988812,1731343874599,-1120.23110249,0.00013877,5]
[341988813,1731343874614,-500.0,0.00013877,2]
[341988814,1731343874628,-500.0,0.00013877,2]
[341988815,1731343874643,-894.88,0.00013877,2]
[341988816,1731343874657,-500.0,0.00013877,2]
[341988817,1731343874671,-1421.41,0.00013877,2]
[341988818,1731343874686,-500.0,0.00013877,2]
[341988819,1731343874701,-500.0,0.00013877,2]
[341988820,1731343874716,-500.0,0.00013877,2]
[341988821,1731343874729,-500.0,0.00013877,2]
[341988822,1731343874744,-500.0,0.00013877,2]
[341988823,1731343874758,-500.0,0.00013877,2]
[341988824,1731343874773,-500.0,0.00013877,2]
[341988825,1731343874790,-609.93,0.00013877,2]
[341988826,1731343874804,-500.0,0.00013877,2]
[341988827,1731343874818,-2302.47,0.00013877,2]
[341988828,1731343874833,-500.0,0.00013877,2]
[341988829,1731343874848,-542.72,0.00013877,2]
[341988830,1731343874863,-846.64,0.00013877,2]
[341988831,1731343874877,-500.0,0.00013877,2]
[341988832,1731343874891,-500.0,0.00013877,2]
[341988833,1731343874904,-1322.93,0.00013877,2]
[341988834,1731343874918,-500.0,0.00013877,2]
[341988835,1731343874932,-531.78,0.00013877,2]
[341988836,1731343874947,-500.0,0.00013877,2]
[341988837,1731343874961,-500.0,0.00013877,2]
[341988838,1731343874975,-1255.84,0.00013877,2]
[341988839,1731343874989,-500.0,0.00013877,2]
[341988840,1731343875004,-5224.77,0.00013877,2]
[341988841,1731343875020,-500.0,0.00013877,2]
[341988842,1731343875042,-559.15,0.00013877,2]
[341988843,1731343875059,-532.71,0.00013877,2]
[341988844,1731343875070,-500.0,0.00013877,2]
[341988845,1731343875080,-500.0,0.00013877,2]
[341988846,1731343875089,-558.01706985,0.00013877,2]
[341988847,1731343875100,-500.0,0.00013877,2]
[341988848,1731343875110,-2516.6,0.00013877,2]
[341988849,1731343875119,-500.0,0.00013877,2]
[341988850,1731343875129,-1332.46,0.00013877,2]
[341988851,1731343875138,-500.0,0.00013877,2]
[341988852,1731343875149,-740.39,0.00013877,2]
[341988853,1731343875159,-500.0,0.00013877,2]
[341988854,1731343875168,-500.0,0.00013877,2]
[341988855,1731343875178,-500.0,0.00013877,2]
[341988856,1731343875425,-716.7,0.00013877,2]
[341988857,1731343875439,-1204.55,0.00013877,2]
[341988858,1731343875450,-638.46,0.00013877,2]
[341988859,1731343875460,-500.0,0.00013877,2]
[341988860,1731343875470,-500.0,0.00013877,2]
[341988861,1731343875480,-500.0,0.00013877,2]
[341988862,1731343875490,-500.0,0.00013877,2]
[341988863,1731343875500,-500.0,0.00013877,2]
[341988864,1731343875510,-500.0,0.00013877,2]
[341988865,1731343875519,-620.98,0.00013877,2]
[341988866,1731343875532,-2504.21,0.00013878,2]
[341988867,1731343875543,-566.78,0.00013878,2]
[341988868,1731343875553,-831.45,0.00013878,2]
[341988869,1731343875562,-1172.11,0.00013878,2]
[341988870,1731343875572,-500.0,0.00013878,2]
[341988871,1731343875582,-500.0,0.00013878,2]
[341988872,1731343875592,-500.0,0.00013878,2]
[341988873,1731343875602,-500.0,0.00013878,2]
[341988874,1731343875611,-500.0,0.00013878,2]
[341988875,1731343875621,-500.0,0.00013878,2]
[341988876,1731343875630,-894.88,0.00013878,2]
[341988877,1731343875640,-500.0,0.00013878,2]
[341988878,1731343875650,-1421.41,0.00013878,2]
[341988879,1731343875660,-842.8,0.00013878,2]
[341988880,1731343875668,-1203.74,0.00013878,2]
[341988881,1731343875678,-632.58,0.00013878,2]
[341988882,1731343875687,-500.0,0.00013878,2]
[341988883,1731343875697,-500.0,0.00013878,2]
[341988884,1731343875707,-500.0,0.00013878,2]
[341988885,1731343875716,-844.19,0.00013878,2]
[341988886,1731343875726,-733.18,0.00013878,2]
[341988887,1731343875735,-1074.69,0.00013878,2]
[341988888,1731343875745,-378.15708041,0.00013878,2]
[341988889,1731343875754,-958.83,0.00013878,2]
[341988890,1731343875764,-500.0,0.00013878,2]
[341988891,1731343875774,-6620.89,0.00013878,2]
[341988892,1731343875786,-500.0,0.00013878,2]
[341988893,1731343875796,-1090.45,0.00013878,2]
[341988894,1731343875806,-2280.07,0.00013878,2]
[341988895,1731343875815,-500.0,0.00013878,2]
[341988896,1731343875825,-1677.38,0.00013878,2]
[341988897,1731343875834,-500.0,0.00013878,2]
[341988898,1731343875843,-788.5,0.00013878,2]
[341988899,1731343875852,-1108.15,0.00013878,2]
[341988900,1731343875862,-641.61,0.00013878,2]
[341988901,1731343875871,-500.0,0.00013878,2]
[341988902,1731343875881,-500.0,0.00013878,2]
[341988903,1731343875891,-500.0,0.00013878,2]
[341988904,1731343875902,-500.0,0.00013878,2]
[341988905,1731343875911,-500.0,0.00013878,2]
[341988906,1731343875920,-3463.27,0.00013878,2]
[341988907,1731343875929,-609.93,0.00013878,2]
[341988908,1731343875938,-500.0,0.00013878,2]
[341988909,1731343875947,-557.03,0.00013878,2]
[341988910,1731343875956,-551.28,0.00013878,2]
[341988911,1731343875965,-500.0,0.00013878,2]
[341988912,1731343875973,-500.0,0.00013878,2]
[341988913,1731343875982,-902.14,0.00013878,2]
[341988914,1731343875992,-2302.47,0.00013878,2]
[341988915,1731343876001,-500.0,0.00013878,2]
[341988916,1731343876011,-500.0,0.00013878,2]
[341988917,1731343876022,-542.72,0.00013878,2]
[341988918,1731343876038,-542.72,0.00013878,2]
[341988919,1731343876048,-846.64,0.00013878,2]
[341988920,1731343876056,-500.0,0.00013878,2]
[341988921,1731343876066,-500.0,0.00013878,2]
[341988922,1731343876076,-500.0,0.00013878,2]
[341988923,1731343876086,-500.0,0.00013878,2]
[341988924,1731343876096,-1322.93,0.00013878,2]
[341988925,1731343876105,-1322.93,0.00013878,2]
[341988926,1731343876115,-500.0,0.00013878,2]
[341988927,1731343876124,-531.78,0.00013878,2]
[341988928,1731343876133,-531.78,0.00013878,2]
[341988929,1731343876143,-500.0,0.00013878,2]
[341988930,1731343876152,-500.0,0.00013878,2]
[341988931,1731343876162,-500.0,0.00013878,2]
[341988932,1731343876171,-500.0,0.00013878,2]
[341988933,1731343876179,-500.0,0.00013878,2]
[341988934,1731343876190,-1255.84,0.00013878,2]
[341988935,1731343876199,-1255.84,0.00013878,2]
[341988936,1731343876209,-500.0,0.00013878,2]
[341988937,1731343876218,-500.0,0.00013878,2]
[341988938,1731343876227,-5224.77,0.00013878,2]
[341988939,1731343876237,-5224.77,0.00013878,2]
[341988940,1731343876246,-3035.66,0.00013878,2]
[341988941,1731343876255,-500.0,0.00013878,2]
[341988942,1731343876264,-500.0,0.00013878,2]
[341988943,1731343876273,-1518.7,0.00013878,2]
[341988944,1731343876286,-559.15,0.00013878,2]
[341988945,1731343876297,-559.15,0.00013878,2]
[341988946,1731343876305,-500.0,0.00013878,2]
[341988947,1731343876313,-532.71,0.00013878,2]
[341988948,1731343876323,-500.0,0.00013878,2]
[341988949,1731343876332,-921.57,0.00013878,2]
[341988950,1731343876341,-500.0,0.00013878,2]
[341988951,1731343876350,-500.0,0.00013878,2]
[341988952,1731343876359,-2516.6,0.00013878,2]
[341988953,1731343876369,-2516.6,0.00013878,2]
[341988954,1731343876379,-500.0,0.00013878,2]
[341988955,1731343876388,-1288.23,0.00013878,2]
[341988956,1731343876399,-1332.46,0.00013878,2]
[341988957,1731343876408,-1332.46,0.00013878,2]
[341988958,1731343876417,-590.73263288,0.00013878,2]
[341988959,1731343876426,-740.39,0.00013878,2]
[341988960,1731343876436,-679.08,0.00013878,2]
[341988961,1731343876445,-500.0,0.00013878,2]
[341988962,1731343876454,-500.0,0.00013878,2]
[341988963,1731343876464,-500.0,0.00013878,2]
[341988964,1731343876474,-500.0,0.00013878,2]
[341988965,1731343876484,-500.0,0.00013878,2]
[341988966,1731343876493,-716.7,0.00013878,2]
[341988967,1731343876503,-1204.55,0.00013878,2]
[341988968,1731343876512,-1204.55,0.00013878,2]
[341988969,1731343876522,-638.46,0.00013878,2]
[341988970,1731343876535,-638.46,0.00013878,2]
[341988971,1731343876545,-500.0,0.00013878,2]
[341988972,1731343876555,-500.0,0.00013878,2]
[341988973,1731343876565,-500.0,0.00013878,2]
[341988974,1731343876575,-500.0,0.00013878,2]
[341988975,1731343876585,-500.0,0.00013878,2]
[341988976,1731343876595,-500.0,0.00013878,2]
[341988977,1731343876605,-500.0,0.00013878,2]
[341988978,1731343876615,-500.0,0.00013878,2]
[341988979,1731343876624,-500.0,0.00013878,2]
[341988980,1731343876633,-500.0,0.00013878,2]
[341988981,1731343876643,-500.0,0.00013878,2]
[341988982,1731343876652,-620.98,0.00013878,2]
[341988983,1731343876662,-151.0,0.00013879,2]
[341988984,1731343876672,-199.6998,0.00013879,2]
[341988985,1731343876682,-165.309528,0.00013879,2]
[341988986,1731343876691,-199.6998,0.00013879,2]
[341988987,1731343876700,-151.0,0.00013879,2]
[341988988,1731343876710,-151.0,0.00013879,2]
[341988989,1731343876720,-2504.21,0.00013879,2]
[341988990,1731343876729,-2504.21,0.00013879,2]
[341988991,1731343876738,-2504.21,0.00013879,2]
[341988992,1731343876748,-2504.21,0.00013879,2]
[341988993,1731343876758,-2504.21,0.00013879,2]
[341988994,1731343876767,-2504.21,0.00013879,2]
[341988995,1731343876776,-2504.21,0.00013879,2]
[341988996,1731343876790,-2504.21,0.00013879,2]
[341988997,1731343876799,-2504.23370512,0.00013879,2]
[341988998,1731343876809,-566.78,0.00013879,2]
[341988999,1731343876819,-566.78,0.00013879,2]
[341989000,1731343876828,-566.78,0.00013879,2]
[341989001,1731343876838,-566.78,0.00013879,2]
[341989002,1731343876847,-566.78,0.00013879,2]
[341989003,1731343876856,-566.78,0.00013879,2]
[341989004,1731343876866,-566.78,0.00013879,2]
[341989005,1731343876876,-566.78,0.00013879,2]
[341989006,1731343876886,-566.81929908,0.00013879,2]
[341989007,1731343876895,-831.45,0.00013879,2]
[341989008,1731343876905,-831.45,0.00013879,2]
[341989009,1731343876914,-831.45,0.00013879,2]
[341989010,1731343876924,-831.45,0.00013879,2]
[341989011,1731343876933,-831.45,0.00013879,2]
[341989012,1731343876942,-831.45,0.00013879,2]
[341989013,1731343876952,-831.45,0.00013879,2]
[341989014,1731343876961,-831.45,0.00013879,2]
[341989015,1731343876971,-831.59064347,0.00013879,2]
[341989016,1731343876982,-1172.11,0.00013879,2]
[341989017,1731343876992,-1172.11,0.00013879,2]
[341989018,1731343877002,-1172.11,0.00013879,2]
[341989019,1731343877012,-1172.11,0.00013879,2]
[341989020,1731343877027,-1172.11,0.00013879,2]
[341989021,1731343877039,-1172.11,0.00013879,2]
[341989022,1731343877049,-500.0,0.00013879,2]
[341989023,1731343877060,-500.0,0.00013879,2]
[341989024,1731343877071,-500.0,0.00013879,2]
[341989025,1731343877082,-500.0,0.00013879,2]
[341989026,1731343877091,-500.0,0.00013879,2]
[341989027,1731343877100,-500.0,0.00013879,2]
[341989028,1731343877111,-500.0,0.00013879,2]
[341989029,1731343877120,-500.0,0.00013879,2]
[341989030,1731343877129,-500.0,0.00013879,2]
[341989031,1731343877139,-500.0,0.00013879,2]
[341989032,1731343877149,-500.0,0.00013879,2]
[341989033,1731343877158,-500.0,0.00013879,2]
[341989034,1731343877167,-500.0,0.00013879,2]
[341989035,1731343877177,-500.0,0.00013879,2]
[341989036,1731343877187,-500.0,0.00013879,2]
[341989037,1731343877196,-500.0,0.00013879,2]
[341989038,1731343877206,-500.0,0.00013879,2]
[341989039,1731343877215,-500.0,0.00013879,2]
[341989040,1731343877224,-579.1,0.00013879,2]
[341989041,1731343877234,-500.0,0.00013879,2]
[341989042,1731343877243,-500.0,0.00013879,2]
[341989043,1731343877253,-500.0,0.00013879,2]
[341989044,1731343877262,-500.0,0.00013879,2]
[341989045,1731343877272,-369.94,0.00013879,2]
[341989046,1731343877286,-406.60767768,0.00013879,2]
[341989047,1731343877295,-500.0,0.00013879,2]
[341989048,1731343877304,-500.0,0.00013879,2]
[341989049,1731343877314,-500.0,0.00013879,2]
[341989050,1731343877323,-500.0,0.00013879,2]
[341989051,1731343877333,-500.0,0.00013879,2]
[341989052,1731343877342,-500.0,0.00013879,2]
[341989053,1731343877352,-894.88,0.00013879,2]
[341989054,1731343877363,-894.88,0.00013879,2]
[341989055,1731343877372,-894.88,0.00013879,2]
[341989056,1731343877382,-894.88,0.00013879,2]
[341989057,1731343877392,-894.88,0.00013879,2]
[341989058,1731343877402,-894.88,0.00013879,2]
[341989059,1731343877412,-500.0,0.00013879,2]
[341989060,1731343877422,-500.0,0.00013879,2]
[341989061,1731343877432,-500.0,0.00013879,2]
[341989062,1731343877441,-500.0,0.00013879,2]
[341989063,1731343877451,-504.0675817,0.00013879,2]
[341989064,1731343877460,-1421.41,0.00013879,2]
[341989065,1731343877470,-1421.41,0.00013879,2]
[341989066,1731343877481,-1421.41,0.00013879,2]
[341989067,1731343877491,-1421.41,0.00013879,2]
[341989068,1731343877501,-1421.41,0.00013879,2]
[341989069,1731343877511,-1421.41,0.00013879,2]
[341989070,1731343877520,-842.8,0.00013879,2]
[341989071,1731343877535,-842.8,0.00013879,2]
[341989072,1731343877544,-842.8,0.00013879,2]
[341989073,1731343877554,-842.8,0.00013879,2]
[341989074,1731343877563,-842.8,0.00013879,2]
[341989075,1731343877573,-842.8,0.00013879,2]
[341989076,1731343877583,-1203.74,0.00013879,2]
[341989077,1731343877593,-1203.74,0.00013879,2]
[341989078,1731343877604,-1203.74,0.00013879,2]
[341989079,1731343877614,-1203.74,0.00013879,2]
[341989080,1731343877624,-1203.74,0.00013879,2]
[341989081,1731343877634,-1203.74,0.00013879,2]
[341989082,1731343877644,-632.58,0.00013879,2]
[341989083,1731343877653,-632.58,0.00013879,2]
[341989084,1731343877663,-632.58,0.00013879,2]
[341989085,1731343877673,-632.58,0.00013879,2]
[341989086,1731343877683,-632.58,0.00013879,2]
[341989087,1731343877693,-632.58,0.00013879,2]
[341989088,1731343877703,-500.0,0.00013879,2]
[341989089,1731343877712,-500.0,0.00013879,2]
[341989090,1731343877722,-500.0,0.00013879,2]
[341989091,1731343877732,-500.0,0.00013879,2]
[341989092,1731343877742,-500.0,0.00013879,2]
[341989093,1731343877752,-500.0,0.00013879,2]
[341989094,1731343877762,-422.82,0.00013879,2]
[341989095,1731343877772,-844.19,0.00013879,2]
[341989096,1731343877784,-844.19,0.00013879,2]
[341989097,1731343877794,-844.19,0.00013879,2]
[341989098,1731343877804,-844.19,0.00013879,2]
[341989099,1731343877814,-844.19,0.00013879,2]
[341989100,1731343877824,-844.19,0.00013879,2]
[341989101,1731343877834,-733.18,0.00013879,2]
[341989102,1731343877843,-733.18,0.00013879,2]
[341989103,1731343877852,-733.18,0.00013879,2]
[341989104,1731343877861,-1074.69,0.00013879,2]
[341989105,1731343877870,-733.18,0.00013879,2]
[341989106,1731343877880,-1074.69,0.00013879,2]
[341989107,1731343877889,-733.18,0.00013879,2]
[341989108,1731343877899,-1074.69,0.00013879,2]
[341989109,1731343877908,-733.18,0.00013879,2]
[341989110,1731343877919,-1074.69,0.00013879,2]
[341989111,1731343877929,-1074.69,0.00013879,2]
[341989112,1731343877938,-1074.69,0.00013879,2]
[341989113,1731343877948,-958.83,0.00013879,2]
[341989114,1731343877958,-958.83,0.00013879,2]
[341989115,1731343877968,-958.83,0.00013879,2]
[341989116,1731343877978,-958.83,0.00013879,2]
[341989117,1731343877988,-958.83,0.00013879,2]
[341989118,1731343877997,-958.83,0.00013879,2]
[341989119,1731343878007,-500.0,0.00013879,2]
[341989120,1731343878018,-500.0,0.00013879,2]
[341989121,1731343878034,-503.64,0.00013879,2]
[341989122,1731343878044,-6620.89,0.00013879,2]
[341989123,1731343878056,-6620.89,0.00013879,2]
[341989124,1731343878068,-6620.89,0.00013879,2]
[341989125,1731343878079,-6620.89,0.00013879,2]
[341989126,1731343878090,-6620.89,0.00013879,2]
[341989127,1731343878103,-6620.89,0.00013879,2]
[341989128,1731343878114,-500.0,0.00013879,2]
[341989129,1731343878124,-500.0,0.00013879,2]
[341989130,1731343878134,-500.0,0.00013879,2]
[341989131,1731343878143,-1090.45,0.00013879,2]
[341989132,1731343878153,-500.0,0.00013879,2]
[341989133,1731343878163,-1090.45,0.00013879,2]
[341989134,1731343878173,-500.0,0.00013879,2]
[341989135,1731343878183,-1090.45,0.00013879,2]
[341989136,1731343878193,-500.0,0.00013879,2]
[341989137,1731343878203,-1090.45,0.00013879,2]
[341989138,1731343878213,-1090.45,0.00013879,2]
[341989139,1731343878223,-1090.45,0.00013879,2]
[341989140,1731343878233,-2280.07,0.00013879,2]
[341989141,1731343878243,-2280.07,0.00013879,2]
[341989142,1731343878253,-2280.07,0.00013879,2]
[341989143,1731343878263,-2280.07,0.00013879,2]
[341989144,1731343878273,-2280.07,0.00013879,2]
[341989145,1731343878286,-2280.07,0.00013879,2]
[341989146,1731343878297,-500.0,0.00013879,2]
[341989147,1731343878307,-500.0,0.00013879,2]
[341989148,1731343878317,-500.0,0.00013879,2]
[341989149,1731343878327,-500.0,0.00013879,2]
[341989150,1731343878338,-500.0,0.00013879,2]
[341989151,1731343878348,-390.11,0.00013879,2]
[341989152,1731343878358,-1677.38,0.00013879,2]
[341989153,1731343878369,-1677.38,0.00013879,2]
[341989154,1731343878379,-1677.38,0.00013879,2]
[341989155,1731343878389,-1677.38,0.00013879,2]
[341989156,1731343878400,-1677.38,0.00013879,2]
[341989157,1731343878410,-1677.38,0.00013879,2]
[341989158,1731343878420,-500.0,0.00013879,2]
[341989159,1731343878431,-500.0,0.00013879,2]
[341989160,1731343878441,-500.0,0.00013879,2]
[341989161,1731343878451,-788.5,0.00013879,2]
[341989162,1731343878461,-788.5,0.00013879,2]
[341989163,1731343878472,-788.5,0.00013879,2]
[341989164,1731343878483,-500.0,0.00013879,2]
[341989165,1731343878493,-788.5,0.00013879,2]
[341989166,1731343878504,-500.0,0.00013879,2]
[341989167,1731343878515,-788.5,0.00013879,2]
[341989168,1731343878526,-500.0,0.00013879,2]